bitfinex-derivatives/quotes_BNBF0:USTF0_20250406
["timestamp","ask_amount","ask_price","bid_price","bid_amount"]
[1743940086851,0.559,588.34,587.86,0.28416017]
[1743940087050,0.559,588.34,587.85,1.27319059]
[1743940088347,0.559,588.34,587.75,0.34028073]
[1743940088547,0.559,588.34,587.76,0.28419385]
[1743940090754,0.559,588.34,587.75,0.34028073]
[1743940090755,0.559,588.34,587.77,0.28419498]
[1743940091049,0.559,588.34,587.75,0.34028073]
[1743940091050,0.559,588.34,587.76,0.28419498]
[1743940091253,0.559,588.34,587.77,0.28419498]
[1743940091454,0.559,588.34,587.78,0.28419498]
[1743940091653,0.559,588.34,587.76,0.28419498]
[1743940091854,0.559,588.34,587.77,0.28419498]
[1743940092053,0.559,588.34,587.76,0.28419498]
[1743940092252,0.559,588.34,587.77,0.28419498]
[1743940092448,0.559,588.34,587.75,0.34028073]
[1743940092650,0.559,588.34,587.76,0.28419779]
[1743940093152,0.689,588.35,587.76,0.28419779]
[1743940096955,0.577,588.34,587.76,0.28419779]
[1743940100656,0.577,588.34,587.75,0.34028073]
[1743940100857,0.577,588.34,587.77,0.28420426]
[1743940101056,0.577,588.34,587.76,0.28420426]
[1743940101256,0.577,588.34,587.78,0.28420426]
[1743940101458,0.577,588.34,587.79,0.28420719]
[1743940101658,0.577,588.34,587.76,0.28420719]
[1743940101853,0.577,588.34,587.77,0.28420719]
[1743940102359,0.577,588.34,587.78,0.28420719]
[1743940102559,0.577,588.34,587.79,0.28420635]
[1743940102853,0.577,588.34,587.76,0.28420635]
[1743940104058,0.577,588.34,587.75,0.34028073]
[1743940104359,0.577,588.34,587.76,0.28421589]
[1743940105657,0.577,588.34,587.75,0.34028073]
[1743940105862,0.577,588.34,587.76,0.28422232]
[1743940108962,0.577,588.34,587.75,0.34028073]
[1743940109158,0.577,588.34,587.76,0.28422379]
[1743940113868,0.745,588.33,587.76,0.28422379]
[1743940115572,0.745,588.33,587.75,0.34028073]
[1743940115772,0.745,588.33,587.76,0.2842229]
[1743940121275,0.745,588.33,587.75,0.34028073]
[1743940121480,0.745,588.33,587.76,0.28422289]
[1743940122279,0.745,588.33,587.75,0.34028073]
[1743940122480,0.745,588.33,587.77,0.28422259]
[1743940122681,0.745,588.33,587.78,0.28422259]
[1743940122880,0.745,588.33,587.76,0.28422259]
[1743940123179,0.745,588.33,587.77,0.28422259]
[1743940123381,0.745,588.33,587.78,0.28422259]
[1743940123682,0.745,588.33,587.79,0.28422259]
[1743940123880,0.745,588.33,587.76,0.28422259]
[1743940124078,0.745,588.33,587.77,0.28422259]
[1743940124276,0.745,588.33,587.76,0.28422259]
[1743940124577,0.745,588.33,587.77,0.28422259]
[1743940124782,0.745,588.33,587.76,0.28422259]
[1743940124981,0.745,588.33,587.75,0.34028073]
[1743940124982,0.745,588.33,587.77,0.28422259]
[1743940125182,0.745,588.33,587.76,0.28422259]
[1743940125983,0.745,588.33,587.78,1.27319059]
[1743940126384,0.745,588.33,587.79,0.28422259]
[1743940127294,0.745,588.33,587.8,0.28422259]
[1743940127500,0.745,588.33,587.79,0.28422259]
[1743940127694,0.745,588.33,587.8,0.28422259]
[1743940127894,1.421,588.33,587.79,0.28422259]
[1743940128088,1.421,588.33,587.8,0.28422259]
[1743940129779,1.421,588.33,587.76,0.28422259]
[1743940130388,1.421,588.33,587.75,0.34028073]
[1743940130686,1.421,588.33,587.76,0.28422289]
[1743940133088,1.421,588.33,587.77,0.28422289]
[1743940133283,1.421,588.33,587.78,0.28422289]
[1743940133485,1.421,588.33,587.76,0.28422289]
[1743940133684,1.421,588.33,587.75,0.34028073]
[1743940133685,1.421,588.33,587.77,0.28422289]
[1743940133991,1.421,588.33,587.78,0.28422221]
[1743940134192,1.421,588.33,587.76,0.28422221]
[1743940134391,1.421,588.33,587.77,0.28422221]
[1743940134585,1.421,588.33,587.78,0.28422221]
[1743940134787,1.421,588.33,587.76,0.28422221]
[1743940135090,1.421,588.33,587.77,0.28422221]
[1743940135291,1.421,588.33,587.76,0.28422221]
[1743940136191,1.421,588.33,587.75,0.34028073]
[1743940136387,1.421,588.33,587.77,0.28422224]
[1743940136593,1.421,588.33,587.78,0.28422224]
[1743940136791,1.421,588.33,587.76,0.28422224]
[1743940138693,1.421,588.33,587.77,1.27319059]
[1743940138898,1.421,588.33,587.78,0.28422224]
[1743940144000,1.421,588.33,587.79,0.28422224]
[1743940144199,1.421,588.33,587.77,0.28422224]
[1743940144401,1.421,588.33,587.78,0.28422224]
[1743940144599,1.421,588.33,587.77,0.28422224]
[1743940144797,1.41173696,588.33,587.77,0.28422224]
[1743940144997,0.676,588.33,587.77,0.28422224]
[1743940146204,0.58170184,588.32,587.76,0.28422224]
[1743940146400,0.676,588.33,587.75,0.34028073]
[1743940146401,0.676,588.33,587.78,0.28422224]
[1743940146599,0.58170126,588.32,587.79,0.28422224]
[1743940146801,0.29583661,588.53,587.75,0.34028073]
[1743940147002,0.5817004,588.52,587.76,0.28376372]
[1743940147201,0.5817004,588.51,587.76,0.28376372]
[1743940147405,0.5817004,588.5,587.76,0.28376372]
[1743940147604,0.5817004,588.49,587.76,0.28376372]
[1743940147801,0.5817004,588.48,587.76,0.28376372]
[1743940148006,0.58174451,588.47,587.76,0.28376372]
[1743940148207,0.58174451,588.46,587.76,0.28376372]
[1743940148404,0.58174451,588.45,587.76,0.28376372]
[1743940148606,0.58174451,588.44,587.76,0.28376372]
[1743940148810,0.58174451,588.43,587.76,0.28376372]
[1743940149009,0.58174451,588.42,587.76,0.28376372]
[1743940149208,0.58174451,588.41,587.76,0.28376372]
[1743940149408,0.58174451,588.4,587.76,0.28376372]
[1743940149708,0.58175589,588.39,587.76,0.28376372]
[1743940149909,0.58175589,588.38,587.76,0.28376372]
[1743940150110,0.58175589,588.37,587.76,0.28376372]
[1743940150310,0.58175589,588.36,587.76,0.28376372]
[1743940150508,0.58175589,588.35,587.76,0.28376372]
[1743940150706,0.562,588.38,587.75,0.34028073]
[1743940150910,0.5817878,588.37,587.76,0.28375871]
[1743940151109,0.5817878,588.36,587.76,0.28375871]
[1743940151307,0.5817878,588.35,587.76,0.28375871]
[1743940151510,0.562,588.38,587.76,0.28375871]
[1743940151710,0.58178278,588.37,587.76,0.28375871]
[1743940151908,0.58178278,588.36,587.76,0.28375871]
[1743940152106,0.58178278,588.35,587.76,0.28375871]
[1743940152309,0.562,588.38,587.76,0.28375871]
[1743940152510,0.58186493,588.37,587.76,0.28375871]
[1743940152710,0.58186493,588.36,587.76,0.28375871]
[1743940152909,0.58186493,588.35,587.76,0.28375871]
[1743940153113,0.562,588.38,587.76,0.28375871]
[1743940153310,0.58188003,588.37,587.75,0.34028073]
[1743940153509,0.562,588.38,587.76,0.2837291]
[1743940159920,0.562,588.38,587.75,0.34028073]
[1743940160116,0.562,588.38,587.76,0.28372003]
[1743940161623,0.562,588.38,587.75,0.34028073]
[1743940161825,0.562,588.38,587.76,0.28372139]
[1743940164324,0.562,588.38,587.77,1.27319059]
[1743940164522,0.562,588.38,587.78,0.28372139]
[1743940166626,0.562,588.38,587.77,1.27319059]
[1743940166824,0.562,588.38,587.78,0.28372639]
[1743940169930,0.562,588.38,587.77,1.27319059]
[1743940170128,0.562,588.38,587.78,0.28372703]
[1743940170827,0.562,588.38,587.79,0.28372703]
[1743940171022,0.562,588.38,587.8,0.28372703]
[1743940171229,0.562,588.38,587.76,0.28372703]
[1743940171428,0.562,588.38,587.77,0.28372703]
[1743940171624,0.562,588.38,587.75,0.34028073]
[1743940171827,0.562,588.38,587.76,0.28372653]
[1743940173334,0.562,588.38,587.75,0.34028073]
[1743940173532,0.562,588.38,587.76,0.28372633]
[1743940175133,0.562,588.38,587.83,1.27319059]
[1743940175528,0.562,588.38,587.84,0.28372633]
[1743940176931,0.562,588.38,587.85,0.28372634]
[1743940177135,0.562,588.38,587.84,0.28372634]
[1743940177428,0.562,588.38,587.85,0.28372634]
[1743940177634,0.562,588.38,587.84,0.28372634]
[1743940177834,0.562,588.38,587.75,1.61347132]
[1743940177835,0.562,588.38,587.87,1.27319059]
[1743940178035,0.562,588.38,587.88,0.28372634]
[1743940178432,0.562,588.38,587.89,0.28372338]
[1743940178635,0.562,588.38,587.88,0.28372338]
[1743940178835,0.562,588.38,587.89,0.28372338]
[1743940179035,0.562,588.38,587.88,0.28372338]
[1743940179235,0.562,588.38,587.87,1.27319059]
[1743940179236,0.562,588.38,587.89,0.28372338]
[1743940179436,0.562,588.38,587.88,0.28372338]
[1743940179638,0.562,588.38,587.89,0.28372338]
[1743940179936,0.562,588.38,587.9,0.28372338]
[1743940180137,0.562,588.38,587.88,0.28372338]
[1743940180337,0.58098795,588.5,587.89,0.28372338]
[1743940180533,0.58098795,588.49,587.85,0.28372338]
[1743940180738,0.58098795,588.48,587.84,1.27319059]
[1743940181039,0.58098795,588.47,587.85,0.28372504]
[1743940181237,0.58098795,588.46,587.85,0.28372504]
[1743940181439,0.58098795,588.45,587.85,0.28372504]
[1743940181634,0.58098795,588.44,587.85,0.28372504]
[1743940181837,0.58098795,588.43,587.85,0.28372504]
[1743940182038,0.29574987,588.6,587.85,0.28372504]
[1743940182336,0.58099183,588.59,587.85,0.28372504]
[1743940182537,0.58099183,588.58,587.85,0.28372504]
[1743940182837,0.58099183,588.57,587.85,0.28372504]
[1743940183034,0.58099183,588.56,587.85,0.28372504]
[1743940183238,0.58099183,588.55,587.8,0.28372504]
[1743940183438,0.58099183,588.54,587.81,0.28372504]
[1743940183633,0.58099183,588.53,587.8,0.28372504]
[1743940183836,0.58099183,588.52,587.81,0.28372504]
[1743940184138,0.58099183,588.51,587.82,0.28372504]
[1743940184339,0.58099183,588.5,587.8,0.28372504]
[1743940184539,0.58099183,588.49,587.81,0.28372504]
[1743940184740,0.58099183,588.48,587.83,1.27319059]
[1743940184941,0.58099183,588.47,587.83,1.27319059]
[1743940185240,0.58099183,588.46,587.84,0.28372215]
[1743940185440,0.58099183,588.45,587.84,0.28372215]
[1743940185634,0.58099183,588.44,587.84,0.28372215]
[1743940185836,0.58099183,588.43,587.84,0.28372215]
[1743940186038,0.665,588.54,587.84,0.28372215]
[1743940186239,0.58099693,588.53,587.84,0.28372215]
[1743940186536,0.58099693,588.52,587.84,0.28372215]
[1743940186736,0.665,588.54,587.83,1.27319059]
[1743940186737,0.58099693,588.51,587.83,1.27319059]
[1743940186937,0.58099693,588.5,587.84,0.28372221]
[1743940187140,0.58099693,588.49,587.84,0.28372221]
[1743940187340,0.58099693,588.48,587.84,0.28372221]
[1743940187543,0.58099693,588.47,587.84,0.28372221]
[1743940187842,0.58099693,588.46,587.84,0.28372221]
[1743940188043,0.58099693,588.45,587.84,1.5569128]
[1743940188342,0.58099693,588.44,587.85,0.28372221]
[1743940188544,0.665,588.54,587.85,0.28372221]
[1743940188745,0.58090037,588.53,587.85,0.28372221]
[1743940188948,0.58090037,588.52,587.85,0.28372221]
[1743940189147,0.58090037,588.51,587.85,0.28372221]
[1743940189343,0.58090037,588.5,587.85,0.28372221]
[1743940189543,0.58090037,588.49,587.85,0.28372221]
[1743940189746,0.58090037,588.48,587.85,0.28372221]
[1743940190048,0.58090037,588.47,587.95,1.27319059]
[1743940190249,0.58090037,588.46,587.96,0.28372221]
[1743940190441,0.58090037,588.45,587.96,0.28372221]
[1743940190641,0.58090037,588.44,587.96,0.28372221]
[1743940190842,0.665,588.54,587.96,0.28372221]
[1743940191145,0.58092783,588.53,587.96,0.28372221]
[1743940191347,0.58092783,588.52,587.96,0.28372221]
[1743940191643,0.58092783,588.51,587.96,0.28372221]
[1743940191842,0.58095769,588.5,587.96,0.28372221]
[1743940192148,0.58095769,588.49,587.97,0.28372221]
[1743940192345,0.58095769,588.48,587.95,0.28372221]
[1743940192545,0.58095769,588.47,587.96,0.28372221]
[1743940192748,0.58095769,588.46,587.97,0.28372221]
[1743940192944,0.58095769,588.45,587.98,0.28372221]
[1743940193250,0.58095769,588.44,587.99,0.28372522]
[1743940193450,0.665,588.54,587.94,1.27319059]
[1743940193647,0.58101544,588.53,587.95,0.28372522]
[1743940193846,0.58101544,588.52,587.95,0.28372522]
[1743940194051,0.58101544,588.51,587.95,0.28372522]
[1743940194347,0.58101544,588.5,587.95,0.28372522]
[1743940194551,0.58101544,588.49,587.95,0.28372522]
[1743940194751,0.58101544,588.48,587.95,1.55691581]
[1743940194956,0.58101544,588.47,587.96,0.28372522]
[1743940195154,0.58101544,588.46,587.96,0.28372522]
[1743940195353,0.58101544,588.45,587.96,0.28372522]
[1743940195554,0.58101544,588.44,587.96,0.28372522]
[1743940195754,0.58101544,588.43,587.96,0.28372522]
[1743940195955,0.58101544,588.42,587.96,0.28372522]
[1743940196155,0.58101544,588.41,587.96,0.28372522]
[1743940196356,0.58101544,588.4,587.96,0.28372522]
[1743940196553,0.58101544,588.39,587.96,0.28372522]
[1743940196757,0.665,588.54,587.96,0.28372522]
[1743940196951,0.58113474,588.53,587.96,0.28372522]
[1743940197151,0.58113477,588.52,587.96,0.28372522]
[1743940197457,0.665,588.54,587.96,0.28372522]
[1743940197458,0.58113477,588.51,587.96,0.28372522]
[1743940197655,0.58113477,588.5,587.92,0.28372522]
[1743940197852,0.58113477,588.49,587.93,0.28372522]
[1743940198056,0.58113477,588.48,587.91,1.27319059]
[1743940198257,0.58113477,588.47,587.91,1.27319059]
[1743940198456,0.58113477,588.46,587.91,1.27319059]
[1743940198756,0.58113477,588.45,587.91,1.27319059]
[1743940198954,0.58114574,588.44,587.91,1.27319059]
[1743940199157,0.58114574,588.43,587.75,0.34028073]
[1743940199357,0.58114574,588.42,587.76,0.28375268]
[1743940199558,0.58114574,588.41,587.76,0.28375268]
[1743940199759,0.58114574,588.4,587.76,0.28375268]
[1743940199954,0.58114574,588.39,587.76,0.28375268]
[1743940200159,0.58114574,588.38,587.76,0.28375268]
[1743940200355,0.58114574,588.37,587.76,0.28375268]
[1743940200668,0.58122416,588.36,587.76,0.28375268]
[1743940200857,0.58122416,588.35,587.76,0.28375268]
[1743940201055,0.29581021,588.53,587.76,0.28375268]
[1743940201056,0.58122416,588.34,587.76,0.28375268]
[1743940201258,0.29581021,588.53,587.76,0.28375268]
[1743940201463,0.58121821,588.52,587.77,0.28375201]
[1743940201658,0.58121821,588.51,587.76,0.28375201]
[1743940201861,0.58121821,588.5,587.77,0.28375201]
[1743940202061,0.58121821,588.49,587.76,0.28375201]
[1743940202258,0.58121821,588.48,587.76,0.28375201]
[1743940202566,0.58121821,588.47,587.76,0.28375201]
[1743940202767,0.58121821,588.46,587.76,0.28375201]
[1743940202959,0.58121821,588.45,587.76,0.28375201]
[1743940203159,0.58121821,588.44,587.76,0.28375201]
[1743940203360,0.58121821,588.43,587.76,0.28375201]
[1743940203564,0.58121821,588.42,587.76,0.28375201]
[1743940203760,0.58123928,588.41,587.76,0.28375201]
[1743940203962,0.58123928,588.4,587.76,0.28375201]
[1743940204161,0.58123928,588.39,587.76,0.28375201]
[1743940204465,0.58123928,588.38,587.76,0.28375201]
[1743940204764,0.29581146,588.53,587.76,0.28375201]
[1743940205066,0.58125051,588.52,587.76,0.28375201]
[1743940205266,0.58125051,588.51,587.76,0.28375201]
[1743940205466,0.58127371,588.5,587.76,0.28375201]
[1743940205667,0.58127371,588.49,587.76,0.28375201]
[1743940205867,0.58127371,588.48,587.76,0.28375201]
[1743940206070,0.58127371,588.47,587.76,0.28375201]
[1743940206263,0.58127371,588.46,587.76,0.28375201]
[1743940206462,0.58127371,588.45,587.76,0.28375201]
[1743940206664,0.58127371,588.44,587.76,0.28375201]
[1743940206864,0.58127371,588.43,587.76,0.28375201]
[1743940207064,0.58127371,588.42,587.76,0.28375201]
[1743940207264,0.58130708,588.41,587.76,0.28375201]
[1743940207463,0.58130708,588.4,587.76,0.28375201]
[1743940207664,0.58130708,588.39,587.76,0.28375201]
[1743940207864,0.58130708,588.38,587.77,0.2837524]
[1743940208063,0.58130708,588.37,587.78,0.2837524]
[1743940208265,0.29581021,588.53,587.76,0.2837524]
[1743940208469,0.58132635,588.52,587.77,0.2837524]
[1743940208668,0.58132635,588.51,587.76,0.2837524]
[1743940208863,0.58132635,588.5,587.76,0.2837524]
[1743940209066,0.58132635,588.49,587.76,0.2837524]
[1743940209265,0.58132635,588.48,587.76,0.2837524]
[1743940209472,0.58132635,588.47,587.75,0.34028073]
[1743940209665,0.29581021,588.53,587.75,0.34028073]
[1743940209666,0.58132635,588.46,587.76,0.28375274]
[1743940209872,0.58132635,588.45,587.76,0.28375274]
[1743940210066,0.58132635,588.44,587.76,0.28375274]
[1743940210272,0.58132635,588.43,587.76,0.28375274]
[1743940210468,0.58132635,588.42,587.76,0.28375274]
[1743940210669,0.58132635,588.41,587.74,0.28375274]
[1743940210876,0.29581021,588.53,587.74,0.28375274]
[1743940211077,0.58124832,588.52,587.74,0.28375274]
[1743940211278,0.58124832,588.51,587.75,0.28380177]
[1743940211576,0.58124832,588.5,587.74,0.28380177]
[1743940211776,0.58124832,588.49,587.75,0.28380177]
[1743940211977,0.58124832,588.48,587.76,0.28380177]
[1743940212177,0.58124832,588.47,587.74,0.28380177]
[1743940212380,0.58124832,588.46,587.74,0.28380177]
[1743940212578,0.58124832,588.45,587.74,0.28380177]
[1743940212780,0.58124832,588.44,587.53,1.27319059]
[1743940212979,0.58124832,588.43,587.54,0.28380243]
[1743940213279,0.58124832,588.42,587.54,0.28380243]
[1743940213474,0.58124832,588.41,587.54,0.28380243]
[1743940213677,0.58124832,588.4,587.54,0.28380243]
[1743940213874,0.58124832,588.39,587.54,0.28380243]
[1743940214078,0.58124832,588.38,587.54,0.28380243]
[1743940214280,0.58124832,588.37,587.54,0.28380243]
[1743940214481,0.58124832,588.36,587.54,0.28380243]
[1743940214679,0.58124832,588.35,587.54,0.28380243]
[1743940214878,0.58124832,588.34,587.54,0.28380243]
[1743940215075,0.58124832,588.33,587.54,0.28380243]
[1743940215275,0.58124832,588.32,587.54,1.55699302]
[1743940215481,0.58124832,588.31,587.55,0.28380243]
[1743940215680,0.29587811,588.41,587.55,0.28380243]
[1743940215681,0.58124832,588.3,587.55,0.28380243]
[1743940215878,0.58124832,588.29,587.55,0.28380243]
[1743940216078,0.58124832,588.28,587.55,0.28380243]
[1743940216280,0.29587811,588.41,587.55,0.28380243]
[1743940216480,0.58068778,588.4,587.55,0.28380243]
[1743940216677,0.58068778,588.39,587.55,0.28380243]
[1743940216881,0.58068778,588.38,587.55,0.28380243]
[1743940217082,0.58068778,588.37,587.55,0.28380243]
[1743940217284,0.58068778,588.4,587.55,0.28380243]
[1743940217479,0.58068778,588.39,587.55,0.28380243]
[1743940217683,0.58068778,588.51,587.54,1.27319059]
[1743940217880,0.29588314,588.41,587.65,1.27319059]
[1743940218184,0.58068778,588.49,587.66,0.28378781]
[1743940218380,0.58068778,588.48,587.66,0.28378781]
[1743940218578,0.58068778,588.47,587.66,0.28378781]
[1743940218782,0.58068778,588.46,587.66,0.28378781]
[1743940218979,0.58068778,588.45,587.66,0.28378781]
[1743940219180,0.58068778,588.44,587.66,0.28378781]
[1743940219385,0.58068778,588.43,587.66,0.28378781]
[1743940219583,0.58068778,588.42,587.66,0.28378781]
[1743940219783,0.58068778,588.46,587.66,0.28378781]
[1743940219986,0.58068778,588.45,587.66,0.28378781]
[1743940220183,0.58068778,588.44,587.66,0.28378781]
[1743940220383,0.58068778,588.43,587.66,0.28378781]
[1743940220589,0.58068778,588.42,587.66,0.28378781]
[1743940220790,0.58068778,588.51,587.66,0.28378781]
[1743940220988,0.58068778,588.5,587.66,0.28378781]
[1743940221187,0.58068778,588.49,587.67,0.28378681]
[1743940221387,0.58068778,588.48,587.66,0.28378681]
[1743940221587,0.58068778,588.47,587.67,0.28378681]
[1743940221788,0.58068778,588.46,587.68,0.28378681]
[1743940221989,0.58068778,588.45,587.66,0.28378681]
[1743940222189,0.58068778,588.44,587.67,0.28378681]
[1743940222390,0.58068778,588.43,587.68,0.28378681]
[1743940222589,0.58068778,588.47,587.66,0.28378681]
[1743940222789,0.58068778,588.46,587.67,0.28378681]
[1743940222989,0.58068778,588.45,587.66,0.28378681]
[1743940223191,0.58068778,588.44,587.67,0.28378681]
[1743940223391,0.58068778,588.43,587.66,0.28378681]
[1743940223693,0.58051642,588.47,587.69,1.27319059]
[1743940223993,0.87636435,588.46,587.7,0.28378681]
[1743940224186,0.58051642,588.45,587.69,1.27319059]
[1743940224390,0.58051642,588.44,587.7,0.28378611]
[1743940224591,0.58051642,588.43,587.7,0.28378611]
[1743940224791,0.58051642,588.45,587.7,0.28378611]
[1743940224994,0.58051642,588.44,587.7,0.28378611]
[1743940225195,0.58051642,588.43,587.7,0.28378611]
[1743940225394,0.29584793,588.46,587.7,0.28378611]
[1743940225590,0.58051933,588.45,587.7,0.28378611]
[1743940225794,0.58051933,588.44,587.7,0.28378611]
[1743940226095,0.58051933,588.43,587.7,0.28378611]
[1743940226295,0.58051933,588.42,587.71,1.27319059]
[1743940226497,0.58051933,588.41,587.72,0.28378611]
[1743940226692,0.58051933,588.4,587.72,0.28378611]
[1743940226896,0.58051933,588.39,587.72,0.28378611]
[1743940227197,0.58051933,588.38,587.72,0.28378611]
[1743940227397,0.5805064,588.37,587.72,0.28378611]
[1743940227598,0.5805064,588.36,587.72,0.28378611]
[1743940227793,0.5805064,588.35,587.72,0.28378611]
[1743940227994,0.5805064,588.34,587.72,0.28378611]
[1743940228197,0.5805064,588.33,587.72,0.28378611]
[1743940228494,0.769,588.35,587.72,0.28378611]
[1743940228696,0.58050402,588.34,587.72,0.28378611]
[1743940228894,0.58050402,588.33,587.67,0.28378611]
[1743940229095,0.769,588.35,587.66,1.27319059]
[1743940229294,0.58053551,588.34,587.68,0.28378664]
[1743940229497,0.58053551,588.33,587.69,0.28378664]
[1743940229798,0.769,588.35,587.67,0.28378664]
[1743940229997,0.58055268,588.34,587.68,0.28378664]
[1743940230195,0.58055268,588.33,587.67,0.28378664]
[1743940230393,0.769,588.35,587.68,0.28378664]
[1743940230596,0.58055546,588.34,587.67,0.28378664]
[1743940230897,0.769,588.35,587.68,1.27319059]
[1743940230898,0.58055546,588.33,587.68,1.27319059]
[1743940231099,0.769,588.35,587.69,0.28378585]
[1743940231298,0.58055772,588.34,587.69,0.28378585]
[1743940231494,0.58055772,588.33,587.69,0.28378585]
[1743940231696,0.769,588.35,587.69,0.28378585]
[1743940231896,0.58055067,588.34,587.69,0.28378585]
[1743940232096,0.58055067,588.33,587.69,0.28378585]
[1743940232303,0.769,588.35,587.69,0.28378585]
[1743940232600,0.580606,588.34,587.69,1.55697644]
[1743940232803,0.580606,588.33,587.7,0.28378585]
[1743940233004,0.769,588.35,587.7,0.28378585]
[1743940233201,0.58060869,588.34,587.7,0.28378585]
[1743940233503,0.58060869,588.33,587.7,0.28378585]
[1743940233701,0.769,588.35,587.7,0.28378585]
[1743940233901,0.58061651,588.34,587.7,0.28378585]
[1743940234100,0.58061651,588.33,587.7,0.28378585]
[1743940234303,0.769,588.35,587.7,0.28378585]
[1743940234504,0.58061883,588.34,587.7,0.28378585]
[1743940234702,0.58061883,588.33,587.69,1.27319059]
[1743940234900,0.769,588.35,587.7,0.28378653]
[1743940235105,0.5806164,588.34,587.7,0.28378653]
[1743940235302,0.5806164,588.33,587.7,0.28378653]
[1743940235501,0.508,588.34,587.67,0.28378653]
[1743940235806,0.58063158,588.33,587.66,1.27319059]
[1743940236002,0.508,588.34,587.67,0.28378631]
[1743940236206,0.58063292,588.33,587.67,0.28378631]
[1743940236409,0.508,588.34,587.67,0.28378631]
[1743940236706,0.58064123,588.33,587.67,0.28378631]
[1743940236905,0.508,588.34,587.67,0.28378631]
[1743940237105,0.58064248,588.33,587.67,0.28378631]
[1743940237306,0.508,588.34,587.67,0.28378631]
[1743940237508,0.58065604,588.33,587.73,1.27319059]
[1743940237703,0.508,588.34,587.74,0.2837862]
[1743940237906,0.58066012,588.33,587.74,0.2837862]
[1743940238106,0.508,588.34,587.74,0.2837862]
[1743940238307,0.58066356,588.33,587.74,0.2837862]
[1743940238508,0.58066356,588.32,587.74,0.2837862]
[1743940238708,0.508,588.34,587.74,0.2837862]
[1743940238912,0.58066874,588.33,587.73,1.27319059]
[1743940239110,0.58066935,588.32,587.74,0.28378655]
[1743940239310,0.508,588.34,587.74,0.28378655]
[1743940239512,0.58069155,588.33,587.74,0.28378655]
[1743940239712,0.508,588.34,587.74,0.28378655]
[1743940240411,0.508,588.34,587.75,0.28378655]
[1743940240708,0.508,588.34,587.76,0.28378655]
[1743940240909,0.508,588.34,587.52,0.28378655]
[1743940241109,0.508,588.34,587.52,0.62420049]
[1743940241309,0.508,588.34,587.53,0.28378655]
[1743940242310,0.508,588.34,587.54,1.61359294]
[1743940242516,0.508,588.34,587.55,0.62416827]
[1743940242715,0.508,588.34,587.56,0.62416247]
[1743940243030,0.508,588.34,587.57,0.62415668]
[1743940243214,0.508,588.34,587.58,0.28377171]
[1743940244117,0.508,588.34,587.59,0.34037338]
[1743940244515,0.508,588.34,587.6,0.28377171]
[1743940244721,0.508,588.34,587.61,0.3403618]
[1743940245018,0.508,588.34,587.62,0.28377171]
[1743940245220,0.508,588.34,587.62,0.62412772]
[1743940245519,0.508,588.34,587.63,0.28377171]
[1743940246924,0.508,588.34,587.78,1.27319059]
[1743940247216,0.769,588.35,587.79,0.28377171]
[1743940247428,0.769,588.35,587.8,0.28369943]
[1743940247618,0.769,588.35,587.81,0.28369943]
[1743940247922,0.769,588.35,587.82,0.28369943]
[1743940248124,0.769,588.35,587.79,0.28369943]
[1743940249625,0.769,588.35,587.81,1.27319059]
[1743940249821,0.769,588.35,587.82,0.28369943]
[1743940251120,0.574,588.34,587.82,0.28369943]
[1743940251720,0.574,588.34,587.82,1.55689002]
[1743940251925,0.574,588.34,587.83,0.28369943]
[1743940253321,0.574,588.34,587.82,1.27319059]
[1743940253526,0.574,588.34,587.83,0.28369166]
[1743940254627,0.574,588.34,587.82,1.27319059]
[1743940254922,0.574,588.34,587.83,0.28369099]
[1743940256425,0.733,588.33,587.83,0.28369099]
[1743940257222,0.733,588.33,587.84,1.27319059]
[1743940257527,0.733,588.33,587.85,0.28368329]
[1743940258926,0.733,588.33,587.84,1.27319059]
[1743940259127,0.733,588.33,587.86,0.28368383]
[1743940259423,0.733,588.33,587.87,0.28368383]
[1743940259630,0.733,588.33,587.85,0.28368383]
[1743940260428,0.733,588.33,587.86,0.28368383]
[1743940260627,0.733,588.33,587.77,0.28368383]
[1743940260828,0.733,588.33,587.87,0.28368383]
[1743940261031,0.733,588.33,587.88,0.28368383]
[1743940261226,0.733,588.33,587.77,0.28368383]
[1743940261532,0.733,588.33,587.78,0.28368383]
[1743940261825,0.733,588.33,587.79,0.28368383]
[1743940262030,0.733,588.33,587.77,0.28368383]
[1743940262226,0.733,588.33,587.78,0.28368383]
[1743940262431,0.733,588.33,587.77,0.28368383]
[1743940262827,0.733,588.33,587.75,0.28368383]
[1743940263026,0.733,588.33,587.76,0.28368383]
[1743940263233,0.733,588.33,587.77,0.28368383]